Cogmind - Beta 13 @@@ ROGUE MODE // 2024.07.24 @ 20:02:53 // Winter2019/RPGLIKE Player: Sionnis Result: Destroyed by 8R-AWN with 8R-AWN's Boregun Performance ------------- Evolutions (0) 0 Regions Visited (3) 600 Robots Destroyed (20) 100 Value Destroyed (432) 432 Prototype IDs (30) 600 Alien Tech Used (0) 0 Bonus (148) 148 TOTAL SCORE: 1880 Bonus ------- Aligned with FarCom 300 Friendly Fire -152 Cogmind --------- Core Integrity 0/700 Matter 300/300 Energy 140/140 System Corruption 0% Temperature Cool (0) Movement Treading (160) Location -10/Exiles Parts ------- > --- POWER (1) -------- Light Deuterium Engine > --- PROPULSION (2) --- Light Treads Light Treads > --- UTILITY (2) ------ Targeting Computer > --- WEAPON (2) ------- Assault Cannon Flail > --- INVENTORY (3) ---- Rocket Launcher Peak State ------------ > --- POWER ------------ Ion Engine > --- PROPULSION ------- Light Treads Light Treads > --- UTILITY ---------- Decoy Drone Bay > --- WEAPON ----------- Beam Cannon Assault Rifle > --- INVENTORY -------- Flail [Rating: 19] Favorites ----------- Power Light Deuterium Engine Engine Light Deuterium Engine Propulsion Light Treads Treads Light Treads Utility Light Armor Plating Device Experimental Sensor Array Processor Targeting Computer Protection Light Armor Plating Weapon Assault Rifle Energy Gun Beam Rifle Energy Cannon Beam Cannon Ballistic Gun Assault Rifle Ballistic Cannon Assault Cannon Launcher Rocket Launcher Impact Weapon Flail Build | -11 -10 -10 -10 ------- Run | Yrd Mat Min Exi Slots Evolved 3 | 3 . . . Power . | . . . . Propulsion 1 | 1 . . . Utility 1 | 1 . . . Weapon 1 | 1 . . . Parts Attached 22 | 5 4 10 3 Power 4 | 1 1 2 . Engine 4 | 1 1 2 . Core . | . . . . Reactor . | . . . . Propulsion 2 | 2 . . . Treads 2 | 2 . . . Leg . | . . . . Wheel . | . . . . Hover . | . . . . Flight . | . . . . Utility 8 | . 2 6 . Device 2 | . . 2 . Storage . | . . . . Processor 2 | . 1 1 . Hackware . | . . . . Protection 4 | . 1 3 . Artifact . | . . . . Weapon 8 | 2 1 2 3 Energy Gun 2 | 1 . 1 . Energy Cannon 1 | . 1 . . Ballistic Gun 1 | 1 . . . Ballistic Cannon 2 | . . 1 1 Launcher 1 | . . . 1 Special Weapon . | . . . . Impact Weapon 1 | . . . 1 Slashing Weapon . | . . . . Piercing Weapon . | . . . . Special Melee Weapon . | . . . . Unidentified Prototypes 2 | . . 2 . Parts Lost 1 | . . . 1 Power . | . . . . Propulsion . | . . . . Utility 1 | . . . 1 Weapon . | . . . . Highest Loss Streak 1 | . . . 1 To Critical Strikes . | . . . . Average Slot Usage (%) 92 | . 87 93 96 Engine 14 | . 14 14 14 Treads 28 | . 28 28 28 Processor 9 | . 4 8 14 Protection 12 | . 11 14 12 Energy Gun 3 | . 1 7 2 Energy Cannon 6 | . 12 6 . Ballistic Gun 7 | . 14 9 . Ballistic Cannon 4 | . . 4 6 Launcher 1 | . . . 4 Impact Weapon 3 | . . . 11 Naked Turns . | . . . . Heaviest Build 20 | 7 13 20 16 Greatest Support 40 | 40 40 40 40 Greatest Overweight (x) . | . . . . Average Overweight (x) . | . . . . Largest Inventory Capacity 3 | 1 1 3 3 Average Capacity 2 | . 1 2 3 Most Carried 3 | 1 1 3 3 Average Carried 1 | . . 2 1 Final Capacity 3 | 1 1 3 3 Final Carried 3 | 1 1 3 1 Class Distribution -------------------- 100% | Mutant Dominant Class ---------------- Mutant | -10/Materials Mutant | -10/Mines Mutant | -10/Exiles Resources | -11 -10 -10 -10 ----------- Run | Yrd Mat Min Exi Matter Collected 569 | 236 147 112 74 Remotely . | . . . . Salvage Created 498 | . 357 140 1 Parts 44 | . 34 8 2 Haulers Intercepted 2 | . 2 . . Recyclers Shooed 3 | . 3 . . Parts Field Recycled . | . . . . Retrieved Matter . | . . . . Parts Self-Destructed . | . . . . Prevented . | . . . . Kills | -11 -10 -10 -10 ------- Run | Yrd Mat Min Exi Combat Hostiles Destroyed 14 | . 9 3 2 Guns 7 | . 4 3 . Cannons 5 | . 5 . . AOE 2 | . . . 2 Classes Destroyed 8 | . 6 1 1 Worker 1 | . 1 . . Hauler 2 | . 2 . . Recycler 1 | . 1 . . Watcher 3 | . 3 . . Swarmer 3 | . 3 . . Grunt 9 | . 6 2 1 Sentry 1 | . . 1 . Assembled 2 | . . . 2 Best Kill Streak 4 | . 4 2 2 Combat Bots Only 3 | . 3 2 2 Max Kills in Single Turn 2 | . 2 1 2 Gunslinging . | . . . . Exploded 1 | . . . 1 Melee . | . . . . Uniques/NPCs Destroyed . | . . . . Combat | -11 -10 -10 -10 -------- Run | Yrd Mat Min Exi Hostile Shots Fired 110 | . 28 10 72 Missed 34 | . 10 6 18 Damage Taken 1178 | . 202 44 932 Core 891 | . 156 30 705 Absorbed by Shields . | . . . . Redirected to Core 734 | . 122 30 582 Core Remaining (%) 100 | 100 . . . Volleys Fired 39 | . 31 4 4 Largest 2 | . 2 2 1 Hottest 80 | . 80 80 33 Shots Fired 74 | . 62 8 4 Gun 47 | . 40 7 . Cannon 23 | . 22 1 . Launcher 4 | . . . 4 Special . | . . . . Kinetic 35 | . 31 4 . Thermal 35 | . 31 4 . Explosive 4 | . . . 4 Electromagnetic . | . . . . Robot Hit Streak 6 | . 6 5 4 Robot Miss Streak 3 | . 3 2 1 Penetration Max . | . . . . Secondary Targets . | . . . . Shots Hit Robots 75 | . 34 5 36 Core Hits 38 | . 22 5 11 Critical Kills . | . . . . Critical Parts Destroyed 1 | . . . 1 Critical Strikes 3 | . . . 3 Smash 3 | . . . 3 Melee Attacks 49 | . . . 49 Impact 49 | . . . 49 Slashing . | . . . . Piercing . | . . . . Sneak Attacks . | . . . . Combat Hostiles . | . . . . Follow-up Attacks . | . . . . Damage Inflicted 2085 | . 537 80 1468 Guns 335 | . 275 60 . Cannons 279 | . 262 17 . Explosions 265 | . . . 265 Melee 1203 | . . . 1203 Ramming 3 | . . 3 . Kinetic 279 | . 250 29 . Thermal 335 | . 287 48 . Explosive 265 | . . . 265 Electromagnetic . | . . . . Impact 1203 | . . . 1203 Slashing . | . . . . Piercing . | . . . . Highest Corruption . | . . . . Average Corruption . | . . . . Corruption Purged . | . . . . Corruption Blocked . | . . . . Overload Shots . | . . . . Overflow Damage 87 | . . . 87 Projectiles . | . . . . Explosions 33 | . . . 33 Melee 54 | . . . 54 Knockbacks 4 | . . . 4 Impact 4 | . . . 4 Kinetic . | . . . . Secondary . | . . . . Self-Inflicted Damage . | . . . . Shots . | . . . . Rammed 1 | . . 1 . Targets Rammed 1 | . . 1 . Kicked . | . . . . Crushed . | . . . . Highest Temperature 102 | . 102 3 8 Average Temperature 29 | . 30 3 8 Received Heat Transfer 125 | . 87 18 20 Siege Activations . | . . . . Robots Corrupted . | . . . . Combat Hostiles . | . . . . Parts Fried . | . . . . Impact Corruptions 6 | . . . 6 Robots Melted . | . . . . Combat Hostiles . | . . . . Parts Melted 2 | . 1 1 . Heat Transferred 740 | . 629 111 . Parts Sabotaged . | . . . . Parts Stolen . | . . . . Parts Stripped . | . . . . Power Chain Reactions . | . . . . Alert | -11 -10 -10 -10 ------- Run | Yrd Mat Min Exi Peak Influence 162 | . 162 93 . Initial 24 | . . 24 . Average 41 | . 61 26 . Maximum Alert Level . | . . . . Low Security (%) 100 | 100 100 100 . Level 1 . | . . . . Level 2 . | . . . . Level 3 . | . . . . Level 4 . | . . . . Level 5 . | . . . . High Security . | . . . . Max Security . | . . . . Squads Dispatched 2 | . 1 1 . Investigation 2 | . 1 1 . Extermination . | . . . . Reinforcement . | . . . . Assault . | . . . . Garrison . | . . . . Intercept . | . . . . Searches Triggered . | . . . . Construction Impeded . | . . . . Haulers Reinforced . | . . . . Active Scanning Responses . | . . . . Cargo Convoy Interrupts . | . . . . Stealth | -11 -10 -10 -10 --------- Run | Yrd Mat Min Exi Distress Signals 2 | . 2 . . Communications Jammed . | . . . . Distress Signals . | . . . . Times Spotted 23 | . 14 3 6 Peak Tracking Total 9 | . 3 2 9 Tactical Retreats . | . . . . Traps | -11 -10 -10 -10 ------- Run | Yrd Mat Min Exi Traps Triggered . | . . . . Indirectly . | . . . . Trap Hack Attempts . | . . . . Triggered . | . . . . Disarmed . | . . . . Reprogrammed . | . . . . Reused . | . . . . Traps Extracted . | . . . . Installed . | . . . . Triggered . | . . . . Machines | -11 -10 -10 -10 ---------- Run | Yrd Mat Min Exi Machines Disabled 2 | . . . 2 Max in Single Turn 1 | . . . 1 Machines Repaired . | . . . . Machines Dismantled . | . . . . Machines Sabotaged . | . . . . Overloaded Fab Kills . | . . . . Hacking | -11 -10 -10 -10 --------- Run | Yrd Mat Min Exi Machines Accessed 11 | . 8 2 1 Terminals 8 | . 8 . . Fabricators . | . . . . Repair Stations . | . . . . Recycling Units . | . . . . Scanalyzers . | . . . . Garrison Access . | . . . . Total Hacks 25 | . 22 2 1 Successful 17 | . 14 2 1 Failed 7 | . 7 . . Catastrophic 2 | . 2 . . Database Lockouts 1 | . 1 . . Manual 8 | . 7 . 1 Terminals 22 | . 22 . . Fabricators . | . . . . Repair Stations . | . . . . Recycling Units . | . . . . Scanalyzers . | . . . . Garrison Access . | . . . . Terminal Hacks 14 | . 11 2 1 Robot Analysis 1 | . 1 . . Prototype ID Bank 4 | . 4 . . Open Door 2 | . . 2 . Alert Level 1 | . 1 . . Unreport Threat 1 | . 1 . . Hauler Manifests 1 | . 1 . . Registered Components 1 | . 1 . . Zone Layout 2 | . 2 . . Derelict Proto ID Bank 1 | . . . 1 Fabricator Hacks . | . . . . Repair Station Hacks . | . . . . Recycling Unit Hacks . | . . . . Scanalyzer . | . . . . Garrison Access Hacks . | . . . . Unauthorized Hacks 3 | . 3 . . Terminals 3 | . 3 . . Botnet 2 | . 2 . . Operators 1 | . 1 . . Fabricators . | . . . . Repair Stations . | . . . . Recycling Units . | . . . . Scanalyzers . | . . . . Garrison Access . | . . . . Data Cores Recovered . | . . . . Used . | . . . . Hacking Detections 5 | . 5 . . Full Trace Events 2 | . 2 . . Feedback Events . | . . . . Feedback Blocked . | . . . . Robot Schematics Acquired . | . . . . Robots Built . | . . . . Authchips . | . . . . Time . | . . . . Total Robot Build Rating . | . . . . Part Schematics Acquired . | . . . . Parts Built . | . . . . Authchips . | . . . . Time . | . . . . Total Part Build Rating . | . . . . Parts Repaired . | . . . . Time . | . . . . Parts Recycled . | . . . . Recycled Matter . | . . . . Retrieved Matter . | . . . . Retrieved Components . | . . . . Parts Scanalyzed . | . . . . Part Schematics Acquired . | . . . . Parts Damaged . | . . . . Bothacking | -11 -10 -10 -10 ------------ Run | Yrd Mat Min Exi Used RIF Installer . | . . . . Robots Hacked . | . . . . Non-combat . | . . . . Combat . | . . . . Robot Hacks Applied . | . . . . Relay Couplers Released . | . . . . Fabnet Peak Effective % . | . . . . Robots Rewired . | . . . . Allies Hacked . | . . . . Hacks Repelled . | . . . . Allies | -11 -10 -10 -10 -------- Run | Yrd Mat Min Exi Total Allies 3 | . . 3 . Largest Group 3 | . . 3 3 Highest-Rated Group 40 | . . 40 40 Highest-Rated Ally 16 | . . 16 16 Total Orders 6 | . . 3 3 STAY 5 | . . 2 3 FOLLOW 1 | . . 1 . Ally Attacks 11 | . . 2 9 Total Damage 98 | . . 35 63 Kills 2 | . . . 2 Allies Corrupted . | . . . . Allies Melted . | . . . . Intel | -11 -10 -10 -10 ------- Run | Yrd Mat Min Exi Robot Analysis Total 1 | . 1 . . Derelict Logs Recovered 1 | . . 1 . Drone Launches . | . . . . Drone Recoveries . | . . . . Exploration | -11 -10 -10 -10 ------------- Run | Yrd Mat Min Exi Turns Passed 3368 | 72 1012 1173 1111 Spaces Moved 1861 | 41 555 697 568 Core 1 | 1 . . . Treads 1860 | 40 555 697 568 Legs . | . . . . Wheels . | . . . . Hover . | . . . . Flight . | . . . . Fastest Speed 50 | 50 160 160 160 Average Speed 159 | 157 160 160 160 Slowest Speed 160 | 160 160 160 160 Overloaded Moves . | . . . . Propulsion Burnouts . | . . . . Robots Hopped . | . . . . Cave-ins Triggered . | . . . . Exploration Rate (%) 63 | 4 89 98 61 Regions Visited 3 Branch Regions 2 Pre-discovered Areas . | . . . . Known Exits Taken 1 | . 1 . . Unknown Exits Taken 2 | 1 . 1 . Scrap Searched 1 | . . 1 . Spaces Dug . | . . . . Terrain Destroyed 22 | . . . 22 Melee . | . . . . Projectile . | . . . . AOE 22 | . . . 22 Terrain Rammed . | . . . . Walls Destroyed . | . . . . Machines Disabled . | . . . . Actions | -11 -10 -10 -10 --------- Run | Yrd Mat Min Exi Total 2108 | 46 617 747 698 Wait 81 | . 9 20 52 Move 1858 | 40 554 696 568 Hop . | . . . . Pick Up 16 | 1 2 3 10 Fast Attach 19 | 5 4 10 . Attach 1 | . . . 1 Detach . | . . . . Swap 2 | . . . 2 Drop 27 | . 4 11 12 Fire 39 | . 31 4 4 Melee 49 | . . . 49 Ram . | . . . . Kick . | . . . . Crush 1 | . . 1 . Escape Stasis . | . . . . Rewire . | . . . . Trap . | . . . . Miscellaneous 15 | . 13 2 . Route ------- -11/Scrapyard -10/Materials (discovered 3 exits: [*Mat x2] / *Min) -10/Mines (discovered 3 exits: [*Mat x2] / *Exi) -10/Exiles (discovered 1 exit: [*Min]) History --------- Turn | Location | Event 1 | -11/Scrapyard | Upgraded with Propulsion slot (x1) 1 | -11/Scrapyard | Upgraded with Utility slot (x1) 1 | -11/Scrapyard | Upgraded with Weapon slot (x1) 34 | -11/Scrapyard | Discovered new exit (range 16) 73 | -11/Scrapyard | Entered Materials 304 | -10/Materials | Build established: Mutant 516 | -10/Materials | Central database locked down 623 | -10/Materials | Discovered new exit (range 4) 755 | -10/Materials | Discovered new exit (range 15) 1075 | -10/Materials | Discovered new exit (range 7) 1083 | -10/Materials | Identified exit to Mines 1085 | -10/Materials | Entered Mines 1087 | -10/Mines | Reached level 2 1099 | -10/Mines | Found the Drone Emporium 1106 | -10/Mines | Found Prototype Device 1106 | -10/Mines | Identified Decoy Drone Bay 1271 | -10/Mines | Received a Rocket Launcher from a helpful Derelict 1569 | -10/Mines | Joined a pair of Derelicts in attacking an 0b10 outpost 1648 | -10/Mines | Assisted by bots powering up and referring to "LRC-V3" 1729 | -10/Mines | Deemed a non-threat by the Exiles lab entrance 1730 | -10/Mines | Discovered new exit (range 5) 1780 | -10/Mines | Found a damaged Exp. Sensor Array with a note attached 1784 | -10/Mines | Found Prototype Device 1784 | -10/Mines | Identified Exp. Sensor Array 1829 | -10/Mines | Learned 2 Materials zone layouts 1851 | -10/Mines | Met a Derelict shopkeep closing up shop 1884 | -10/Mines | Discovered new exit (range 5) 2022 | -10/Mines | Discovered new exit (range 6) 2258 | -10/Mines | Entered Exiles 2258 | -10/Exiles | Accompanied by 3 allies 2279 | -10/Exiles | Discovered new exit (range 15) 2302 | -10/Exiles | Met 8R-AWN 2326 | -10/Exiles | Met EX-HEX 2372 | -10/Exiles | Met EX-BIN 2391 | -10/Exiles | Aligned with FarCom system 2393 | -10/Exiles | Given EX-Vault access code 2431 | -10/Exiles | Opened EX-Vault 2445 | -10/Exiles | Found Cloak of Protection 2498 | -10/Exiles | Warned to stay clear of 0b10 Research branches 2541 | -10/Exiles | Met EX-DEC 3138 | -10/Exiles | Attacked by the Exiles 3287 | -10/Exiles | Core integrity fell below 50% 3329 | -10/Exiles | Core integrity fell below 20% 3369 | -10/Exiles | Destroyed by 8R-AWN with 8R-AWN's Boregun Last Messages --------------- HV Slug penetrates Wall. Penetrated by HV Slug. HV Slug penetrates Wall. Penetrated by HV Slug. HV Slug penetrates Wall. Penetrated by HV Slug. Destroyed Prototype Device. 8R-AWN system corrupted by crushing effect. Penetrated by HV Slug. 8R-AWN suffers critical hit (Smash). Destroyed Prototype Ballistic Gun. 8R-AWN system corrupted by crushing effect. Penetrated by HV Slug. 8R-AWN suffers critical hit (Smash). Penetrated by HV Slug. Destroyed Prototype Device. Destroyed Prototype Protection. 8R-AWN system corrupted by crushing effect. HV Slug penetrates Wall. Penetrated by HV Slug. Map ----- +----------------------------------------------------+ | ?????????????????????????????????????????????????? | | ?????????????????????????????????????????????????? | | ?????????????????????????????????????????????????? | | ?????????????????????????????????????????????????? | | ?????????????????????????????????????????????????? | | ?????????????????????????????????????????????????? | | ?????????????????????????????????????????????????? | | ?????????????????????????????????????????????????? | | ?????????????????????????????????????????????????? | | ?????????????????????????????????????????????????? | | ?????????????????????????????????????????????????? | | ?????????????????????????????????????????????????? | | ?????????????????????????????????????????????????? | | ?????????????????????????????????????????????????? | | ?????????????????????????????????????????????????? | | ?????????????????????????????????????????????????? | | ?????????????????????????????????????????????????? | | ????????????? ???????????????????????????????????? | | ???????????? ??????????????#######?????????????? | | ???????????? ######???????#!!! "#?????????????? | | ???????????? #""#??????# "#?????????????? | | ???????????# ??????# "#?????????????? | | ????????????#" #????## ""#?????????????? | | ????????????" ##### ""#?????????????? | | ??????????????# g ""#????????????? | | ???????????????# @ #??##??????????" | | ?????????????????## # #??????????" | | ??????????????????#### #####??????????" | | ?????????????????????##; = # ##???????? | | ??????????????########; *=%[ # #?????????" | | ??????????????#" !! %! [ % #???????# | | ???????????????# *!%"## ####???### | | ???????????????# !! =!!"#? """#####X# | | ?????????????# " ! ##?? | | ?????????????### "" "#;#??? "# | | ???????????????######;;## #???#### * | | ???????????????????? ##?# #??????### | | ??????????????????? #???# #????????### | | ???????????????????#????# #??????????## | | ????????????????????????# #???????????## | | ????????????????????????# #????????????##" | | ????????????????????????? ??????????????#""" | | ????????????????????????? ??????????????#" | | ????????????????????????? ?????????????#"" | | ????????????????????????? ?????????????#""" | | ????????????????????????? ????????????#""" | | ?????????????????????????#????????????#""" | | ???????????????????????????????????????"" | | ???????????????????????????????????????""" | | ???????????????????????????????????????"" | +----------------------------------------------------+ Best States ------------- Heat Dissipation 31 Energy Generation 14 Energy Capacity 275 Matter Stores 300 Matter Capacity 300 Sight Range 16 Robot Scan Range 18 Terrain Scan Density 10 Armor Coverage 150 Evasion (%) 40 Targeting Accuracy 5 Recoil Reduction 2 Item Schematics ----------------- None Robot Schematics ------------------ None Fabricated ------------ Nothing Alien Tech Used ----------------- None Achievements -------------- None Challenges ------------ None RPGLIKE | -11 -10 -10 -10 --------- Run | Yrd Mat Min Exi Levels Raised 1 | . . 1 . XP Earned 5495 | 3000 1255 890 350 XP Spent 4460 | 2960 . 1500 . Upgrades 18 | 15 . 3 . Propulsion Slot 1 | 1 . . . Utility Slot 1 | 1 . . . Weapon Slot 1 | 1 . . . Core Integrity 2 | 2 . . . Heat Dissipation 1 | 1 . . . Inventory Capacity 3 | 1 . 2 . Sensor Range 9 | 8 . 1 . Protomatter Created 312 | . 223 44 45 Integrity Restored 234 | . 204 30 . Core 186 | . 156 30 . Parts 48 | . 48 . . Protomatter Decayed 357 | . 115 181 61 Game ------ Seed ArmageddonCoilMantle Manual? 0 Play Time 00:23:40 Cumulative 509.4 hours Start 2024.07.24 @ 19:40:16 End 2024.07.24 @ 20:02:53 Sessions 1 Manual Loads 0 Difficulty Rogue Special Mode Winter2019/RPGLIKE Game No. 267 Rogue 267 Adventurer 0 Explorer 0 Win Type - Total 34 Types 22/2/3/3/1/1/1/1/0 Lore% 90 Gallery% 99 Achievement% 98 Wizard Run 0 Options --------- Layout 2 ASCII 0 Keyboard 0 Movement Numpad Keybinds 0 Fullscreen 1 Font 24/Smallcaps Map View 50x44 Zoom Use 0% Tactical HUD 1 Map Filters NONE Filters NONE Steam 1 RUN: b4dca78a-f614-4e49-8938-163b47ef9c47